fUST/lending_fUST_20250302
["ID","MTS","AMOUNT","RATE_DAILY","PERIOD"]
[355084660,1740887491621,-151.0,0.00026804,7]
[355084663,1740887491641,-1080.75,0.00026804,2]
[355084666,1740887491657,-500.0,0.00026804,2]
[355084669,1740887491675,-500.0,0.00026804,2]
[355084671,1740887491692,-500.0,0.00026804,2]
[355084674,1740887491709,-998.88,0.00026804,2]
[355084676,1740887491724,-500.0,0.00026804,2]
[355084679,1740887491740,-500.0,0.00026804,2]
[355084681,1740887491757,-500.0,0.00026804,2]
[355084684,1740887491773,-500.0,0.00026804,2]
[355084686,1740887491788,-1216.98,0.00026804,2]
[355084689,1740887491804,-658.58,0.00026804,2]
[355084692,1740887491820,-1583.32,0.00026804,2]
[355084696,1740887491849,-633.86,0.00026804,2]
[355084699,1740887491876,-500.0,0.00026804,2]
[355084703,1740887491899,-500.0,0.00026804,2]
[355084706,1740887491920,-500.0,0.00026804,2]
[355084709,1740887491944,-500.0,0.00026804,2]
[355084712,1740887491965,-500.0,0.00026804,2]
[355084715,1740887491984,-500.0,0.00026804,2]
[355084718,1740887492003,-500.0,0.00026804,2]
[355084721,1740887492021,-903.21,0.00026804,2]
[355084724,1740887492039,-500.0,0.00026817,2]
[355084727,1740887492057,-576.55,0.00026979,2]
[355084729,1740887492076,-695.94,0.00026981,2]
[355084732,1740887492094,-500.0,0.00026981,2]
[355084735,1740887492113,-638.24,0.00026981,2]
[355084738,1740887492130,-512.29,0.00026981,2]
[355084740,1740887492142,-517.75,0.00026981,2]
[355084742,1740887492152,-500.0,0.00026981,2]
[355084744,1740887492162,-555.95,0.00026981,2]
[355084746,1740887492172,-332.13153052,0.00026981,2]
[355084748,1740887492182,-604.17,0.00026981,2]
[355084750,1740887492195,-274.11809678,0.00026981,2]
[355084752,1740887492205,-535.38,0.00026981,2]
[355084754,1740887492216,-644.85,0.00026981,2]
[355084756,1740887492226,-1109.68,0.00026981,2]
[355084758,1740887492236,-500.0,0.00026981,2]
[355084760,1740887492246,-500.0,0.00026983,2]
[355084762,1740887492256,-500.0,0.00026983,2]
[355084764,1740887492265,-3938.98,0.00026983,2]
[355084766,1740887492275,-1897.21,0.00026983,2]
[355084768,1740887492285,-500.0,0.00026983,2]
[355084770,1740887492295,-814.94,0.00026983,2]
[355084772,1740887492304,-500.0,0.00026983,2]
[355084774,1740887492314,-582.56,0.00026983,2]
[355084776,1740887492324,-500.0,0.00026984,2]
[355084778,1740887492334,-500.0,0.00026984,2]
[355084780,1740887492344,-606.5,0.00026984,2]
[355084782,1740887492354,-1398.67,0.00026984,2]
[355084784,1740887492364,-610.78,0.00026984,2]
[355084787,1740887492375,-500.0,0.00026984,2]
[355084789,1740887492386,-462.85106771,0.00026984,2]
[355084791,1740887492396,-500.0,0.00026984,2]
[355084793,1740887492407,-500.0,0.00026984,2]
[355084795,1740887492424,-722.78,0.00026984,2]
[355084798,1740887492434,-500.0,0.00026984,2]
[355084800,1740887492446,-457.22124228,0.00026984,2]
[355084802,1740887492456,-1444.05,0.00026984,2]
[355084804,1740887492467,-500.0,0.00026984,2]
[355084806,1740887492477,-500.0,0.00026984,2]
[355084808,1740887492488,-1058.22,0.00026984,2]
[355084810,1740887492499,-1004.44,0.00026984,2]
[355084812,1740887492509,-500.0,0.00026984,2]
[355084814,1740887492519,-699.97,0.00026984,2]
[355084816,1740887492529,-2209.6,0.00026984,2]
[355084818,1740887492540,-335.41289695,0.00026984,2]
[355084821,1740887492551,-6855.05,0.00026984,2]
[355084823,1740887492561,-500.0,0.00026984,2]
[355084825,1740887492571,-933.72,0.00026984,2]
[355084827,1740887492581,-500.0,0.00026984,2]
[355084829,1740887492592,-612.38,0.00026984,2]
[355084831,1740887492603,-785.13,0.00026984,2]
[355084869,1740887493124,-829.6,0.00026984,2]
[355084873,1740887493147,-966.52,0.00026984,2]
[355084876,1740887493170,-895.37,0.00026984,2]
[355084880,1740887493199,-500.0,0.00026984,2]
[355084883,1740887493221,-6949.16,0.00026984,2]
[355084885,1740887493232,-500.0,0.00026984,2]
[355084887,1740887493242,-500.0,0.00026984,2]
[355084889,1740887493252,-863.82,0.00026984,2]
[355084891,1740887493262,-4270.14,0.00026984,2]
[355084893,1740887493272,-1135.48,0.00026984,2]
[355084895,1740887493282,-637.67,0.00026984,2]
[355084897,1740887493293,-631.8132487,0.00026984,2]
[355084899,1740887493303,-5348.24,0.00026984,2]
[355084901,1740887493314,-3293.1,0.00026984,2]
[355084903,1740887493324,-4549.77,0.00026984,2]
[355084905,1740887493335,-769.42,0.00026984,2]
[355084907,1740887493344,-500.0,0.00026984,2]
[355084909,1740887493361,-2567.41,0.00026984,2]
[355084911,1740887493371,-1086.26,0.00026984,2]
[355084913,1740887493381,-604.84,0.00026984,2]
[355084915,1740887493390,-7043.4,0.00026984,2]
[355084917,1740887493400,-786.15,0.00026984,2]
[355084919,1740887493410,-500.0,0.00026984,2]
[355084921,1740887493420,-500.0,0.00026984,2]
[355084923,1740887493430,-1576.77,0.00026984,2]
[355084925,1740887493441,-2514.1,0.00026984,2]
[355084927,1740887493451,-2961.51,0.00026984,2]
[355084929,1740887493462,-5947.3,0.00026984,2]
[355084931,1740887493471,-500.0,0.00026984,2]
[355084933,1740887493481,-1198.18,0.00026984,2]
[355084935,1740887493491,-1870.92,0.00026984,2]
[355084937,1740887493500,-1004.96,0.00026984,2]
[355084939,1740887493510,-752.9,0.00026984,2]
[355084941,1740887493520,-599.36160518,0.00026984,2]
[355084943,1740887493529,-90588.84,0.00026985,2]
[355084945,1740887493539,-1608.93,0.00026985,2]
[355084947,1740887493549,-917.51,0.00026985,2]
[355084949,1740887493559,-7853.56,0.00026985,2]
[355084951,1740887493568,-2071.45,0.00026985,2]
[355084953,1740887493579,-500.0,0.00026985,2]
[355084955,1740887493588,-2786.42,0.00026985,2]
[355084957,1740887493599,-584.33,0.00026985,2]
[355084959,1740887493614,-25446.5,0.00026985,2]
[355084961,1740887493625,-726.66,0.00026985,2]
[355084963,1740887493635,-1129.25953888,0.00026995,2]
[355084965,1740887493646,-500.0,0.00027077,2]
[355084967,1740887493658,-500.0,0.00027077,2]
[355084969,1740887493668,-500.0,0.00027077,2]
[355084971,1740887493679,-500.0,0.00027077,2]
[355084973,1740887493690,-500.0,0.00027077,2]
[355084975,1740887493701,-700.75,0.00027077,2]
[355084977,1740887493712,-500.0,0.00027077,2]
[355084979,1740887493722,-500.0,0.00027077,2]
[355084981,1740887493732,-509.21,0.00027077,2]
[355084983,1740887493743,-500.0,0.00027077,2]
[355084985,1740887493754,-500.0,0.00027077,2]
[355084987,1740887493774,-500.0,0.00027077,2]
[355084988,1740887493788,-500.0,0.00027077,2]
[355084990,1740887493800,-511.51,0.00027077,2]
[355084991,1740887493812,-500.0,0.00027077,2]
[355084993,1740887493823,-545.25,0.00027077,2]
[355084994,1740887493834,-984.68,0.00027077,2]
[355084996,1740887493847,-164.60666721,0.00027077,2]
[355084997,1740887493858,-500.0,0.00027077,2]
[355084999,1740887493869,-500.0,0.00027077,2]
[355085000,1740887493880,-500.0,0.00027077,2]
[355085001,1740887493891,-532.97,0.00027077,2]
[355085003,1740887493901,-500.0,0.00027077,2]
[355085004,1740887493911,-500.0,0.00027077,2]
[355085006,1740887493922,-787.96,0.00027077,2]
[355085007,1740887493932,-500.0,0.00027077,2]
[355085009,1740887493944,-500.0,0.00027077,2]
[355085010,1740887493955,-879.86,0.00027077,2]
[355085012,1740887493966,-511.59,0.00027077,2]
[355085013,1740887493976,-500.0,0.00027077,2]
[355085015,1740887493987,-1331.9,0.00027077,2]
[355085016,1740887493997,-500.0,0.00027077,2]
[355085018,1740887494008,-500.0,0.00027077,2]
[355085019,1740887494019,-500.0,0.00027077,2]
[355085021,1740887494029,-500.0,0.00027077,2]
[355085022,1740887494039,-500.0,0.00027077,2]
[355085024,1740887494050,-500.0,0.00027077,2]
[355085026,1740887494061,-2389.55,0.00027077,2]
[355085027,1740887494071,-1197.27,0.00027077,2]
[355085028,1740887494081,-500.0,0.00027077,2]
[355085030,1740887494091,-1199.41,0.00027077,2]
[355085032,1740887494101,-800.95,0.00027078,2]
[355085033,1740887494113,-595.63,0.00027078,2]
[355085035,1740887494123,-151.0,0.00027078,7]
[355085036,1740887494134,-619.14,0.00027078,2]
[355085038,1740887494144,-696.73,0.00027078,2]
[355085039,1740887494156,-500.0,0.00027078,2]
[355085041,1740887494166,-827.74,0.00027078,2]
[355085042,1740887494177,-556.71,0.00027078,2]
[355085044,1740887494187,-645.31,0.00027078,2]
[355085046,1740887494199,-500.0,0.00027078,2]
[355085047,1740887494210,-500.0,0.00027078,2]
[355085049,1740887494221,-500.0,0.00027078,2]
[355085050,1740887494232,-546.83,0.00027078,2]
[355085052,1740887494242,-155.87764749,0.00027078,2]
[355085053,1740887494253,-500.0,0.00027078,2]
[355085055,1740887494264,-1197.2,0.00027078,2]
[355085056,1740887494275,-824.78,0.00027078,2]
[355085058,1740887494284,-510.26,0.00027078,2]
[355085060,1740887494295,-671.0,0.00027078,2]
[355085061,1740887494305,-1080.75,0.00027078,2]
[355085063,1740887494315,-500.0,0.00027078,2]
[355085064,1740887494326,-500.0,0.00027078,2]
[355085066,1740887494336,-500.0,0.00027078,2]
[355085067,1740887494347,-998.88,0.00027078,2]
[355085069,1740887494358,-500.0,0.00027078,2]
[355085070,1740887494369,-500.0,0.00027078,2]
[355085072,1740887494380,-500.0,0.00027078,2]
[355085074,1740887494396,-500.0,0.00027078,2]
[355085075,1740887494408,-1216.98,0.00027078,2]
[355085077,1740887494419,-658.58,0.00027078,2]
[355085079,1740887494431,-1583.32,0.00027078,2]
[355085080,1740887494442,-633.86,0.00027078,2]
[355085082,1740887494453,-500.0,0.00027078,2]
[355085083,1740887494464,-500.0,0.00027078,2]
[355085085,1740887494474,-369.11731026,0.00027078,2]
[355085086,1740887494485,-500.0,0.00027078,2]
[355085088,1740887494496,-500.0,0.00027078,2]
[355085090,1740887494507,-500.0,0.00027078,2]
[355085091,1740887494518,-903.21,0.00027078,2]
[355085093,1740887494529,-151.0,0.0002709,7]
[355085095,1740887494540,-500.0,0.00027091,2]
[355085096,1740887494550,-686.383,0.00027137,2]
[355085098,1740887494561,-2200.0,0.00027137,2]
[355085099,1740887494572,-150.0,0.00027225,7]
[355085101,1740887494582,-150.0,0.00027225,7]
[355085103,1740887494594,-3201.2741002,0.00027235,4]
[355085104,1740887494608,-576.55,0.00027253,2]
[355085106,1740887494619,-695.94,0.00027255,2]
[355085107,1740887494631,-500.0,0.00027255,2]
[355085109,1740887494643,-638.24,0.00027255,2]
[355085111,1740887494655,-512.29,0.00027255,2]
[355085112,1740887494665,-517.75,0.00027255,2]
[355085114,1740887494676,-500.0,0.00027255,2]
[355085116,1740887494687,-555.95,0.00027255,2]
[355085117,1740887494698,-604.17,0.00027255,2]
[355085119,1740887494708,-535.38,0.00027255,2]
[355085120,1740887494720,-644.85,0.00027255,2]
[355085122,1740887494730,-1109.68,0.00027255,2]
[355085123,1740887494742,-500.0,0.00027255,2]
[355085125,1740887494753,-500.0,0.00027257,2]
[355085127,1740887494764,-500.0,0.00027257,2]
[355085128,1740887494774,-3938.98,0.00027257,2]
[355085130,1740887494785,-1897.21,0.00027257,2]
[355085132,1740887494798,-500.0,0.00027257,2]
[355085133,1740887494808,-814.94,0.00027257,2]
[355085135,1740887494818,-500.0,0.00027257,2]
[355085136,1740887494829,-582.56,0.00027257,2]
[355085138,1740887494839,-500.0,0.00027258,2]
[355085140,1740887494850,-230.22519857,0.00027258,2]
[355085141,1740887494860,-606.5,0.00027258,2]
[355085143,1740887494871,-1398.67,0.00027258,2]
[355085145,1740887494882,-610.78,0.00027258,2]
[355085146,1740887494893,-500.0,0.00027258,2]
[355085148,1740887494903,-500.0,0.00027258,2]
[355085149,1740887494914,-500.0,0.00027258,2]
[355085151,1740887494925,-722.78,0.00027258,2]
[355085153,1740887494935,-500.0,0.00027258,2]
[355085154,1740887494947,-1444.05,0.00027258,2]
[355085156,1740887494958,-500.0,0.00027258,2]
[355085158,1740887494969,-500.0,0.00027258,2]
[355085159,1740887494980,-1058.22,0.00027258,2]
[355085161,1740887494991,-1004.44,0.00027258,2]
[355085163,1740887495001,-500.0,0.00027258,2]
[355085164,1740887495012,-699.97,0.00027258,2]
[355085166,1740887495023,-2209.6,0.00027258,2]
[355085167,1740887495033,-6855.05,0.00027258,2]
[355085169,1740887495043,-500.0,0.00027258,2]
[355085170,1740887495054,-933.72,0.00027258,2]
[355085172,1740887495064,-500.0,0.00027258,2]
[355085173,1740887495074,-612.38,0.00027258,2]
[355085174,1740887495084,-785.13,0.00027258,2]
[355085175,1740887495094,-829.6,0.00027258,2]
[355085177,1740887495105,-966.52,0.00027258,2]
[355085178,1740887495115,-895.37,0.00027258,2]
[355085180,1740887495128,-500.0,0.00027258,2]
[355085181,1740887495139,-6949.16,0.00027258,2]
[355085183,1740887495148,-500.0,0.00027258,2]
[355085184,1740887495159,-863.82,0.00027258,2]
[355085186,1740887495170,-4270.14,0.00027258,2]
[355085187,1740887495181,-1135.48,0.00027258,2]
[355085189,1740887495192,-637.67,0.00027258,2]
[355085190,1740887495202,-5348.24,0.00027258,2]
[355085191,1740887495214,-3293.1,0.00027258,2]
[355085193,1740887495224,-151.0,0.00027258,7]
[355085195,1740887495235,-151.0,0.00027258,7]
[355085196,1740887495245,-4549.77,0.00027258,2]
[355085198,1740887495256,-769.42,0.00027258,2]
[355085199,1740887495266,-500.0,0.00027258,2]
[355085201,1740887495276,-2567.41,0.00027258,2]
[355085202,1740887495286,-1086.26,0.00027258,2]
[355085204,1740887495296,-604.84,0.00027258,2]
[355085205,1740887495307,-786.15,0.00027258,2]
[355085207,1740887495317,-7043.4,0.00027258,2]
[355085208,1740887495327,-500.0,0.00027258,2]
[355085210,1740887495338,-151.653595,0.00027258,7]
[355085212,1740887495348,-500.0,0.00027258,2]
[355085213,1740887495358,-1576.77,0.00027258,2]
[355085214,1740887495370,-2514.1,0.00027258,2]
[355085215,1740887495380,-2961.51,0.00027258,2]
[355085216,1740887495391,-5947.3,0.00027258,2]
[355085217,1740887495401,-183.894362,0.00027258,7]
[355085218,1740887495412,-500.0,0.00027258,2]
[355085219,1740887495422,-183.894362,0.00027258,7]
[355085220,1740887495433,-1198.18,0.00027258,2]
[355085221,1740887495443,-1870.92,0.00027258,2]
[355085222,1740887495454,-192.306332,0.00027258,7]
[355085223,1740887495463,-1004.96,0.00027258,2]
[355085224,1740887495474,-752.9,0.00027258,2]
[355085225,1740887495484,-90588.84,0.00027259,2]
[355085226,1740887495495,-1608.93,0.00027259,2]
[355085227,1740887495505,-917.51,0.00027259,2]
[355085228,1740887495515,-7853.56,0.00027259,2]
[355085229,1740887495525,-2071.45,0.00027259,2]
[355085230,1740887495535,-500.0,0.00027259,2]
[355085231,1740887495546,-2786.42,0.00027259,2]
[355085232,1740887495556,-584.33,0.00027259,2]
[355085233,1740887495567,-25446.5,0.00027259,2]
[355085234,1740887495578,-726.66,0.00027259,2]
[355085236,1740887495589,-551.66955698,0.00027351,2]
[355085238,1740887495600,-500.0,0.00027351,2]
[355085240,1740887495616,-217.9,0.00027351,2]
[355085242,1740887495627,-500.0,0.00027351,2]
[355085244,1740887495639,-500.0,0.00027351,2]
[355085246,1740887495650,-700.75,0.00027351,2]
[355085248,1740887495660,-158.04554385,0.00027351,2]
[355085250,1740887495670,-500.0,0.00027351,2]
[355085252,1740887495682,-509.21,0.00027351,2]
[355085255,1740887495694,-261.28278279,0.00027351,2]
[355085257,1740887495704,-500.0,0.00027351,2]
[355085259,1740887495715,-510.77307315,0.00027351,2]
[355085261,1740887495725,-500.0,0.00027351,2]
[355085263,1740887495736,-511.51,0.00027351,2]
[355085265,1740887495747,-500.0,0.00027351,2]
[355085267,1740887495757,-545.25,0.00027351,2]
[355085269,1740887495768,-984.68,0.00027351,2]
[355085271,1740887495778,-500.0,0.00027351,2]
[355085273,1740887495789,-500.0,0.00027351,2]
[355085275,1740887495799,-500.0,0.00027351,2]
[355085277,1740887495809,-151.0,0.00027351,7]
[355085280,1740887495820,-532.97,0.00027351,2]
[355085282,1740887495830,-151.0,0.00027351,7]
[355085284,1740887495840,-373.35908003,0.00027351,2]
[355085286,1740887495850,-500.0,0.00027351,2]
[355085288,1740887495861,-787.96,0.00027351,2]
[355085290,1740887495871,-500.0,0.00027351,2]
[355085292,1740887495882,-500.0,0.00027351,2]
[355085294,1740887495892,-879.86,0.00027351,2]
[355085296,1740887495902,-511.59,0.00027351,2]
[355085298,1740887495912,-500.0,0.00027351,2]
[355085300,1740887495922,-1331.9,0.00027351,2]
[355085302,1740887495932,-510.86,0.00027351,2]
[355085304,1740887495943,-500.0,0.00027351,2]
[355085306,1740887495954,-500.0,0.00027351,2]
[355085308,1740887495963,-500.0,0.00027351,2]
[355085310,1740887495974,-522.65763595,0.00027351,2]
[355085312,1740887495984,-500.0,0.00027351,2]
[355085314,1740887495994,-2389.55,0.00027351,2]
[355085316,1740887496005,-1197.27,0.00027351,2]
[355085318,1740887496015,-518.3,0.00027351,2]
[355085320,1740887496026,-1199.41,0.00027351,2]
[355085322,1740887496036,-800.95,0.00027352,2]
[355085324,1740887496047,-595.63,0.00027352,2]
[355085327,1740887496058,-619.14,0.00027352,2]
[355085329,1740887496068,-696.73,0.00027352,2]
[355085331,1740887496080,-500.0,0.00027352,2]
[355085333,1740887496090,-827.74,0.00027352,2]
[355085335,1740887496100,-556.71,0.00027352,2]
[355085337,1740887496111,-645.31,0.00027352,2]
[355085339,1740887496121,-500.0,0.00027352,2]
[355085341,1740887496133,-235.344567,0.00027352,7]
[355085343,1740887496143,-500.0,0.00027352,2]
[355085345,1740887496154,-229.50057946,0.00027352,2]
[355085348,1740887496169,-546.83,0.00027352,2]
[355085350,1740887496180,-500.0,0.00027352,2]
[355085352,1740887496192,-1197.2,0.00027352,2]
[355085354,1740887496203,-151.0,0.00027352,7]
[355085356,1740887496213,-824.78,0.00027352,2]
[355085358,1740887496225,-510.26,0.00027352,2]
[355085360,1740887496235,-337.005517,0.00027352,7]
[355085362,1740887496245,-337.005517,0.00027352,7]
[355085364,1740887496255,-671.0,0.00027352,2]
[355085366,1740887496265,-151.0,0.00027352,7]
[355085369,1740887496275,-166.261306,0.00027352,7]
[355085371,1740887496285,-151.0,0.00027352,7]
[355085373,1740887496296,-166.261306,0.00027352,7]
[355085375,1740887496306,-151.0,0.00027352,7]
[355085377,1740887496316,-1080.75,0.00027352,2]
[355085379,1740887496327,-500.0,0.00027352,2]
[355085381,1740887496337,-647.29385601,0.00027352,2]
[355085383,1740887496347,-500.0,0.00027352,2]
[355085385,1740887496357,-998.88,0.00027352,2]
[355085387,1740887496368,-500.0,0.00027352,2]
[355085389,1740887496379,-500.0,0.00027352,2]
[355085392,1740887496390,-500.0,0.00027352,2]
[355085394,1740887496400,-500.0,0.00027352,2]
[355085396,1740887496411,-1216.98,0.00027352,2]
[355085398,1740887496421,-658.58,0.00027352,2]
[355085400,1740887496431,-1583.32,0.00027352,2]
[355085402,1740887496441,-633.86,0.00027352,2]
[355085404,1740887496451,-500.0,0.00027352,2]
[355085406,1740887496462,-500.0,0.00027352,2]
[355085408,1740887496473,-507.44481178,0.00027352,2]
[355085410,1740887496483,-500.0,0.00027352,2]
[355085412,1740887496494,-500.0,0.00027352,2]
[355085414,1740887496504,-903.21,0.00027352,2]
[355085416,1740887496515,-500.0,0.00027365,2]
[355085418,1740887496525,-151.0,0.00027365,7]
[355085420,1740887496535,-151.0,0.00027365,7]
[355085422,1740887496546,-151.0,0.00027365,7]
[355085424,1740887496557,-151.0,0.00027365,7]
[355085426,1740887496567,-151.0,0.00027365,7]
[355085428,1740887496579,-151.0,0.00027365,7]
[355085430,1740887496590,-151.0,0.00027365,7]
[355085432,1740887496603,-151.0,0.00027365,7]
[355085434,1740887496615,-151.0,0.00027365,7]
[355085436,1740887496626,-8413.33204885,0.00027378,2]
[355085439,1740887496636,-151.0,0.00027397,2]
[355085441,1740887496647,-151.0,0.00027397,2]
[355085443,1740887496658,-151.0,0.00027397,2]
[355085445,1740887496668,-576.55,0.00027527,2]
[355085447,1740887496678,-695.94,0.00027529,2]
[355085449,1740887496692,-500.0,0.00027529,2]
[355085451,1740887496702,-638.24,0.00027529,2]
[355085452,1740887496712,-512.29,0.00027529,2]
[355085454,1740887496723,-517.75,0.00027529,2]
[355085456,1740887496733,-555.95,0.00027529,2]
[355085459,1740887496743,-604.17,0.00027529,2]
[355085461,1740887496754,-535.38,0.00027529,2]
[355085463,1740887496764,-644.85,0.00027529,2]
[355085485,1740887496978,-1109.68,0.00027529,2]
[355085488,1740887497001,-500.0,0.00027529,2]
[355085490,1740887497011,-500.0,0.00027531,2]
[355085492,1740887497021,-500.0,0.00027531,2]
[355085494,1740887497031,-3938.98,0.00027531,2]
[355085496,1740887497043,-1897.21,0.00027531,2]
[355085498,1740887497053,-500.0,0.00027531,2]
[355085500,1740887497063,-814.94,0.00027531,2]
[355085502,1740887497073,-500.0,0.00027531,2]
[355085504,1740887497083,-582.56,0.00027531,2]
[355085505,1740887497094,-500.0,0.00027532,2]
[355085508,1740887497108,-606.5,0.00027532,2]
[355085510,1740887497118,-1398.67,0.00027532,2]
[355085512,1740887497129,-610.78,0.00027532,2]
[355085514,1740887497139,-500.0,0.00027532,2]
[355085516,1740887497149,-500.0,0.00027532,2]
[355085518,1740887497159,-500.0,0.00027532,2]
[355085520,1740887497169,-722.78,0.00027532,2]
[355085522,1740887497179,-500.0,0.00027532,2]
[355085523,1740887497189,-1444.05,0.00027532,2]
[355085525,1740887497199,-500.0,0.00027532,2]
[355085527,1740887497209,-500.0,0.00027532,2]
[355085529,1740887497219,-1058.22,0.00027532,2]
[355085531,1740887497230,-1004.44,0.00027532,2]
[355085534,1740887497240,-500.0,0.00027532,2]
[355085536,1740887497251,-151.0,0.00027532,7]
[355085538,1740887497260,-699.97,0.00027532,2]
[355085540,1740887497270,-2209.6,0.00027532,2]
[355085541,1740887497281,-282.974679,0.00027532,7]
[355085543,1740887497290,-6855.05,0.00027532,2]
[355085545,1740887497300,-500.0,0.00027532,2]
[355085548,1740887497310,-933.72,0.00027532,2]
[355085550,1740887497321,-500.0,0.00027532,2]
[355085552,1740887497330,-612.38,0.00027532,2]
[355085554,1740887497340,-785.13,0.00027532,2]
[355085555,1740887497350,-829.6,0.00027532,2]
[355085558,1740887497361,-966.52,0.00027532,2]
[355085560,1740887497371,-895.37,0.00027532,2]
[355085562,1740887497381,-500.0,0.00027532,2]
[355085563,1740887497391,-6949.16,0.00027532,2]
[355085565,1740887497401,-500.0,0.00027532,2]
[355085568,1740887497412,-863.82,0.00027532,2]
[355085569,1740887497422,-4270.14,0.00027532,2]
[355085570,1740887497432,-1135.48,0.00027532,2]
[355085571,1740887497442,-637.67,0.00027532,2]
[355085572,1740887497451,-5348.24,0.00027532,2]
[355085573,1740887497461,-3293.1,0.00027532,2]
[355085574,1740887497471,-4549.77,0.00027532,2]
[355085575,1740887497481,-769.42,0.00027532,2]
[355085576,1740887497491,-500.0,0.00027532,2]
[355085577,1740887497501,-2567.41,0.00027532,2]
[355085578,1740887497511,-1086.26,0.00027532,2]
[355085579,1740887497521,-604.84,0.00027532,2]
[355085581,1740887497532,-786.15,0.00027532,2]
[355085582,1740887497542,-7043.4,0.00027532,2]
[355085584,1740887497553,-500.0,0.00027532,2]
[355085586,1740887497563,-500.0,0.00027532,2]
[355085588,1740887497572,-1576.77,0.00027532,2]
[355085590,1740887497583,-2514.1,0.00027532,2]
[355085592,1740887497594,-2961.51,0.00027532,2]
[355085594,1740887497607,-5947.3,0.00027532,2]
[355085596,1740887497616,-328.48407042,0.00027532,2]
[355085598,1740887497627,-1198.18,0.00027532,2]
[355085601,1740887497637,-1870.92,0.00027532,2]
[355085602,1740887497648,-1004.96,0.00027532,2]
[355085604,1740887497658,-752.9,0.00027532,2]
[355085606,1740887497668,-90588.84,0.00027533,2]
[355085609,1740887497680,-1608.93,0.00027533,2]
[355085611,1740887497691,-917.51,0.00027533,2]
[355085612,1740887497700,-7853.56,0.00027533,2]
[355085615,1740887497711,-2071.45,0.00027533,2]
[355085617,1740887497722,-500.0,0.00027533,2]
[355085619,1740887497732,-2786.42,0.00027533,2]
[355085621,1740887497742,-164.330266,0.00027533,7]
[355085623,1740887497752,-164.330266,0.00027533,7]
[355085625,1740887497763,-584.33,0.00027533,2]
[355085627,1740887497772,-151.0,0.00027533,7]
[355085629,1740887497783,-25446.5,0.00027533,2]
[355085631,1740887497794,-726.66,0.00027533,2]
[355085633,1740887497805,-587.0,0.00027565,2]
[355085635,1740887497815,-500.0,0.00027625,2]
[355085637,1740887497826,-500.0,0.00027625,2]
[355085639,1740887497836,-500.0,0.00027625,2]
[355085641,1740887497846,-700.75,0.00027625,2]
[355085643,1740887497855,-500.0,0.00027625,2]
[355085645,1740887497866,-509.21,0.00027625,2]
[355085647,1740887497876,-500.0,0.00027625,2]
[355085649,1740887497886,-500.0,0.00027625,2]
[355085651,1740887497897,-511.51,0.00027625,2]
[355085653,1740887497908,-500.0,0.00027625,2]
[355085656,1740887497919,-545.25,0.00027625,2]
[355085658,1740887497929,-984.68,0.00027625,2]